fUST/lending_fUST_20250604
["ID","MTS","AMOUNT","RATE_DAILY","PERIOD"]
[364252976,1749049844330,-440.0,0.00016986,2]
[364252977,1749049844339,-334.35846197,0.00016986,2]
[364252979,1749049844348,-440.0,0.00016986,2]
[364252981,1749049844358,-440.0,0.00016986,2]
[364252984,1749049844368,-413.18104678,0.00016986,2]
[364252985,1749049844378,-440.0,0.00016986,2]
[364252987,1749049844388,-1725.1,0.00016986,2]
[364252989,1749049844397,-440.0,0.00016986,2]
[364252991,1749049844408,-440.0,0.00016986,2]
[364252993,1749049844417,-440.0,0.00016986,2]
[364252995,1749049844427,-410.0,0.00016986,2]
[364252997,1749049844439,-440.0,0.00016986,2]
[364253000,1749049844450,-497.01784821,0.00016986,2]
[364253001,1749049844459,-440.0,0.00016986,2]
[364253003,1749049844468,-440.0,0.00016986,2]
[364253006,1749049844479,-440.0,0.00016986,2]
[364253007,1749049844491,-440.0,0.00016986,2]
[364253009,1749049844500,-440.0,0.00016986,2]
[364253011,1749049844510,-440.0,0.00016986,2]
[364253013,1749049844520,-494.08,0.00016986,2]
[364253015,1749049844531,-440.0,0.00016986,2]
[364253017,1749049844541,-336.04273473,0.00016986,2]
[364253019,1749049844550,-410.0,0.00016986,2]
[364253021,1749049844562,-500.0,0.00017021,2]
[364253023,1749049844572,-941.13984157,0.00017021,2]
[364253025,1749049844581,-500.0,0.00017021,2]
[364253027,1749049844591,-1000.0,0.00017021,2]
[364253029,1749049844600,-1000.0,0.00017021,2]
[364253031,1749049844609,-500.0,0.00017033,2]
[364253033,1749049844619,-500.0,0.00017033,2]
[364253035,1749049844628,-500.0,0.00017033,2]
[364253037,1749049844638,-500.0,0.00017033,2]
[364253039,1749049844648,-500.0,0.00017226,2]
[364253041,1749049844658,-418.82031128,0.0001726,2]
[364253043,1749049844667,-408.33354368,0.0001726,2]
[364253045,1749049844677,-400.0,0.0001726,2]
[364253047,1749049844686,-423.72288419,0.0001726,2]
[364253049,1749049844696,-440.0,0.0001726,2]
[364253051,1749049844706,-400.0,0.0001726,2]
[364253053,1749049844715,-400.0,0.0001726,2]
[364253055,1749049844725,-400.0,0.0001726,2]
[364253057,1749049844734,-440.0,0.0001726,2]
[364253059,1749049844744,-400.0,0.0001726,2]
[364253061,1749049844753,-400.0,0.0001726,2]
[364253063,1749049844762,-400.0,0.0001726,2]
[364253065,1749049844771,-400.0,0.0001726,2]
[364253067,1749049844782,-400.0,0.0001726,2]
[364253069,1749049844792,-440.0,0.0001726,2]
[364253071,1749049844801,-440.0,0.0001726,2]
[364253073,1749049844811,-378.61590313,0.0001726,2]
[364253075,1749049844820,-440.0,0.0001726,2]
[364253077,1749049844831,-418.15995988,0.0001726,2]
[364253079,1749049844840,-400.0,0.0001726,2]
[364253081,1749049844850,-400.0,0.0001726,2]
[364253083,1749049844859,-440.0,0.0001726,2]
[364253085,1749049844869,-400.0,0.0001726,2]
[364253087,1749049844878,-440.0,0.0001726,2]
[364253089,1749049844887,-440.0,0.0001726,2]
[364253091,1749049844896,-440.0,0.0001726,2]
[364253092,1749049844905,-440.0,0.0001726,2]
[364253095,1749049844915,-440.0,0.0001726,2]
[364253097,1749049844924,-440.0,0.0001726,2]
[364253098,1749049844934,-440.0,0.0001726,2]
[364253101,1749049844944,-440.0,0.0001726,2]
[364253102,1749049844953,-440.0,0.0001726,2]
[364253104,1749049844962,-440.0,0.0001726,2]
[364253106,1749049844972,-409.18929194,0.0001726,2]
[364253109,1749049844981,-440.0,0.0001726,2]
[364253110,1749049844991,-440.0,0.0001726,2]
[364253112,1749049845000,-440.0,0.0001726,2]
[364253114,1749049845009,-400.0,0.0001726,2]
[364253116,1749049845019,-440.0,0.0001726,2]
[364253118,1749049845029,-400.0,0.0001726,2]
[364253120,1749049845039,-440.0,0.0001726,2]
[364253122,1749049845048,-500.0,0.0001726,2]
[364253124,1749049845059,-440.0,0.0001726,2]
[364253126,1749049845068,-440.0,0.0001726,2]
[364253136,1749049845153,-460.96,0.0001726,2]
[364253138,1749049845163,-440.0,0.0001726,2]
[364253140,1749049845173,-440.0,0.0001726,2]
[364253142,1749049845182,-557.99800971,0.0001726,2]
[364253144,1749049845191,-440.0,0.0001726,2]
[364253146,1749049845201,-440.0,0.0001726,2]
[364253148,1749049845211,-440.0,0.0001726,2]
[364253150,1749049845221,-728.53,0.0001726,2]
[364253153,1749049845231,-260.20184727,0.0001726,2]
[364253155,1749049845241,-440.0,0.0001726,2]
[364253157,1749049845251,-440.0,0.0001726,2]
[364253159,1749049845260,-440.0,0.0001726,2]
[364253161,1749049845270,-440.0,0.0001726,2]
[364253162,1749049845280,-440.0,0.0001726,2]
[364253164,1749049845290,-1817.93,0.0001726,2]
[364253167,1749049845299,-440.0,0.0001726,2]
[364253169,1749049845309,-440.0,0.0001726,2]
[364253171,1749049845318,-400.0,0.0001726,2]
[364253173,1749049845328,-440.0,0.0001726,2]
[364253174,1749049845338,-954.0,0.0001726,2]
[364253176,1749049845347,-440.0,0.0001726,2]
[364253178,1749049845356,-440.0,0.0001726,2]
[364253180,1749049845366,-440.0,0.0001726,2]
[364253182,1749049845375,-418.77149452,0.0001726,2]
[364253184,1749049845384,-1292.98,0.0001726,2]
[364253186,1749049845393,-440.0,0.0001726,2]
[364253188,1749049845403,-400.0,0.0001726,2]
[364253190,1749049845412,-1731.79,0.0001726,2]
[364253192,1749049845422,-440.0,0.0001726,2]
[364253194,1749049845431,-440.0,0.0001726,2]
[364253196,1749049845441,-440.0,0.0001726,2]
[364253198,1749049845450,-440.0,0.0001726,2]
[364253200,1749049845460,-400.0,0.0001726,2]
[364253202,1749049845469,-440.0,0.0001726,2]
[364253204,1749049845481,-440.0,0.0001726,2]
[364253206,1749049845494,-440.0,0.0001726,2]
[364253209,1749049845504,-440.0,0.0001726,2]
[364253210,1749049845514,-440.0,0.0001726,2]
[364253212,1749049845524,-436.41081921,0.0001726,2]
[364253215,1749049845535,-2281.41,0.0001726,2]
[364253216,1749049845545,-400.0,0.0001726,2]
[364253218,1749049845554,-440.0,0.0001726,2]
[364253220,1749049845565,-440.0,0.0001726,2]
[364253222,1749049845574,-384.1548375,0.0001726,2]
[364253224,1749049845583,-440.0,0.0001726,2]
[364253226,1749049845592,-440.0,0.0001726,2]
[364253228,1749049845602,-440.0,0.0001726,2]
[364253230,1749049845611,-440.0,0.0001726,2]
[364253232,1749049845621,-440.0,0.0001726,2]
[364253234,1749049845631,-440.0,0.0001726,2]
[364253236,1749049845640,-400.0,0.0001726,2]
[364253238,1749049845650,-732.21,0.0001726,2]
[364253240,1749049845659,-783.41,0.0001726,2]
[364253242,1749049845668,-440.0,0.0001726,2]
[364253244,1749049845677,-440.0,0.0001726,2]
[364253246,1749049845687,-440.0,0.0001726,2]
[364253248,1749049845696,-440.0,0.0001726,2]
[364253250,1749049845706,-440.0,0.0001726,2]
[364253252,1749049845715,-954.88,0.0001726,2]
[364253254,1749049845725,-1018.43,0.0001726,2]
[364253256,1749049845735,-440.0,0.0001726,2]
[364253258,1749049845745,-440.0,0.0001726,2]
[364253260,1749049845754,-440.0,0.0001726,2]
[364253262,1749049845763,-440.0,0.0001726,2]
[364253264,1749049845773,-310.0,0.0001726,2]
[364253266,1749049845783,-410.74592492,0.0001726,2]
[364253267,1749049845792,-440.0,0.0001726,2]
[364253268,1749049845803,-440.0,0.0001726,2]
[364253269,1749049845813,-588.98,0.0001726,2]
[364253271,1749049845823,-420.0,0.0001726,2]
[364253273,1749049845832,-440.0,0.0001726,2]
[364253274,1749049845842,-440.0,0.0001726,2]
[364253276,1749049845853,-440.0,0.0001726,2]
[364253277,1749049845862,-440.0,0.0001726,2]
[364253278,1749049845872,-440.0,0.0001726,2]
[364253279,1749049845882,-440.0,0.0001726,2]
[364253280,1749049845891,-440.0,0.0001726,2]
[364253281,1749049845902,-440.0,0.0001726,2]
[364253282,1749049845911,-1028.62,0.0001726,2]
[364253283,1749049845921,-973.96,0.0001726,2]
[364253284,1749049845932,-440.0,0.0001726,2]
[364253285,1749049845942,-440.0,0.0001726,2]
[364253286,1749049845952,-440.0,0.0001726,2]
[364253287,1749049845962,-440.0,0.0001726,2]
[364253288,1749049845972,-440.0,0.0001726,2]
[364253289,1749049845981,-400.0,0.0001726,2]
[364253290,1749049845991,-641.5,0.0001726,2]
[364253291,1749049846001,-440.0,0.0001726,2]
[364253292,1749049846010,-410.0,0.0001726,2]
[364253293,1749049846019,-440.0,0.0001726,2]
[364253294,1749049846031,-440.0,0.0001726,2]
[364253295,1749049846040,-1725.1,0.0001726,2]
[364253296,1749049846050,-440.0,0.0001726,2]
[364253297,1749049846059,-400.0,0.0001726,2]
[364253298,1749049846069,-440.0,0.0001726,2]
[364253299,1749049846079,-440.0,0.0001726,2]
[364253300,1749049846088,-260.377292,0.0001726,2]
[364253301,1749049846098,-440.0,0.0001726,2]
[364253302,1749049846107,-440.0,0.0001726,2]
[364253303,1749049846117,-440.0,0.0001726,2]
[364253304,1749049846128,-440.0,0.0001726,2]
[364253305,1749049846139,-259.37838624,0.0001726,2]
[364253306,1749049846149,-494.08,0.0001726,2]
[364253307,1749049846159,-440.0,0.0001726,2]
[364253308,1749049846168,-500.0,0.00017321,2]
[364253309,1749049846178,-1079.6233432,0.00017321,2]
[364253310,1749049846187,-238.36753509,0.00017321,2]
[364253311,1749049846197,-500.0,0.00017321,2]
[364253312,1749049846207,-500.0,0.00017321,2]
[364253313,1749049846216,-1000.0,0.00017321,2]
[364253314,1749049846226,-1000.0,0.00017321,2]
[364253315,1749049846235,-500.72993794,0.00017374,2]
[364253316,1749049846244,-500.0,0.00017374,2]
[364253317,1749049846254,-776.53845434,0.000175,2]
[364253318,1749049846263,-776.5384543,0.000175,2]
[364253319,1749049846272,-776.5384543,0.000175,2]
[364253320,1749049846284,-6560.08986912,0.00017533,2]
[364253321,1749049846293,-6560.08986912,0.00017533,2]
[364253323,1749049846303,-6560.08986912,0.00017533,2]
[364253325,1749049846313,-6560.08986912,0.00017533,2]
[364253327,1749049846323,-6560.08986912,0.00017533,2]
[364253329,1749049846333,-6560.08986912,0.00017533,2]
[364253331,1749049846343,-6560.08986912,0.00017533,2]
[364253333,1749049846352,-6518.10529396,0.00017533,2]
[364253335,1749049846364,-6518.10529396,0.00017533,2]
[364253337,1749049846374,-6518.10529396,0.00017533,2]
[364253339,1749049846386,-6518.10529396,0.00017533,2]
[364253342,1749049846396,-6518.10529396,0.00017533,2]
[364253343,1749049846407,-6518.10529396,0.00017533,2]
[364253345,1749049846417,-6518.10529396,0.00017533,2]
[364253348,1749049846427,-6518.10529396,0.00017533,2]
[364253349,1749049846436,-6518.10529396,0.00017533,2]
[364253351,1749049846445,-6518.10529396,0.00017533,2]
[364253353,1749049846454,-6518.10529396,0.00017533,2]
[364253355,1749049846464,-6518.10529396,0.00017533,2]
[364253357,1749049846474,-6518.10529396,0.00017533,2]
[364253359,1749049846485,-6518.10529396,0.00017533,2]
[364253362,1749049846495,-6518.10529396,0.00017533,2]
[364253364,1749049846504,-6518.10529396,0.00017533,2]
[364253366,1749049846514,-6771.58716649,0.00017533,2]
[364253368,1749049846526,-6771.58716649,0.00017533,2]
[364253370,1749049846535,-6771.58716649,0.00017533,2]
[364253372,1749049846545,-6771.58716649,0.00017533,2]
[364253373,1749049846555,-6771.58716649,0.00017533,2]
[364253375,1749049846566,-6771.58716649,0.00017533,2]
[364253378,1749049846576,-6771.58716649,0.00017533,2]
[364253380,1749049846586,-6771.58716649,0.00017533,2]
[364253382,1749049846595,-6771.58716649,0.00017533,2]
[364253383,1749049846604,-500.0,0.00017533,2]
[364253386,1749049846614,-500.0,0.00017533,2]
[364253387,1749049846624,-500.0,0.00017533,2]
[364253389,1749049846633,-407.827277,0.00017534,2]
[364253391,1749049846642,-440.0,0.00017534,2]
[364253394,1749049846653,-390.0,0.00017534,2]
[364253396,1749049846665,-440.0,0.00017534,2]
[364253406,1749049846754,-399.86829182,0.00017534,2]
[364253408,1749049846764,-440.0,0.00017534,2]
[364253410,1749049846776,-440.0,0.00017534,2]
[364253413,1749049846785,-440.0,0.00017534,2]
[364253415,1749049846795,-440.0,0.00017534,2]
[364253416,1749049846804,-440.0,0.00017534,2]
[364253417,1749049846813,-384.07300146,0.00017534,2]
[364253418,1749049846823,-440.0,0.00017534,2]
[364253419,1749049846832,-440.0,0.00017534,2]
[364253420,1749049846842,-440.0,0.00017534,2]
[364253421,1749049846851,-440.0,0.00017534,2]
[364253422,1749049846861,-440.0,0.00017534,2]
[364253423,1749049846871,-440.0,0.00017534,2]
[364253424,1749049846881,-440.0,0.00017534,2]
[364253425,1749049846889,-440.0,0.00017534,2]
[364253426,1749049846898,-213.08751468,0.00017534,2]
[364253427,1749049846906,-440.0,0.00017534,2]
[364253428,1749049846914,-390.0,0.00017534,2]
[364253429,1749049846923,-440.0,0.00017534,2]
[364253430,1749049846933,-460.96,0.00017534,2]
[364253432,1749049846943,-440.0,0.00017534,2]
[364253434,1749049846953,-440.0,0.00017534,2]
[364253436,1749049846963,-440.0,0.00017534,2]
[364253438,1749049846972,-440.0,0.00017534,2]
[364253440,1749049846982,-440.0,0.00017534,2]
[364253442,1749049846991,-728.53,0.00017534,2]
[364253444,1749049847001,-440.0,0.00017534,2]
[364253446,1749049847011,-440.0,0.00017534,2]
[364253448,1749049847020,-440.0,0.00017534,2]
[364253450,1749049847031,-440.0,0.00017534,2]
[364253452,1749049847041,-316.28674074,0.00017534,2]
[364253454,1749049847050,-1817.93,0.00017534,2]
[364253456,1749049847060,-440.0,0.00017534,2]
[364253458,1749049847070,-440.0,0.00017534,2]
[364253460,1749049847079,-440.0,0.00017534,2]
[364253462,1749049847089,-954.0,0.00017534,2]
[364253464,1749049847098,-440.0,0.00017534,2]
[364253466,1749049847107,-440.0,0.00017534,2]
[364253468,1749049847116,-440.0,0.00017534,2]
[364253470,1749049847125,-1292.98,0.00017534,2]
[364253472,1749049847135,-440.0,0.00017534,2]
[364253474,1749049847144,-1731.79,0.00017534,2]
[364253476,1749049847154,-440.0,0.00017534,2]
[364253477,1749049847163,-440.0,0.00017534,2]
[364253478,1749049847173,-440.0,0.00017534,2]
[364253479,1749049847182,-440.0,0.00017534,2]
[364253480,1749049847191,-440.0,0.00017534,2]
[364253481,1749049847201,-440.0,0.00017534,2]
[364253482,1749049847211,-390.0,0.00017534,2]
[364253483,1749049847221,-440.0,0.00017534,2]
[364253484,1749049847231,-2281.41,0.00017534,2]
[364253485,1749049847240,-440.0,0.00017534,2]
[364253486,1749049847250,-289.2384521,0.00017534,2]
[364253487,1749049847259,-440.0,0.00017534,2]
[364253488,1749049847269,-440.0,0.00017534,2]
[364253489,1749049847280,-316.54173381,0.00017534,2]
[364253490,1749049847289,-440.0,0.00017534,2]
[364253491,1749049847298,-390.0,0.00017534,2]
[364253493,1749049847308,-440.0,0.00017534,2]
[364253494,1749049847317,-732.21,0.00017534,2]
[364253495,1749049847327,-783.41,0.00017534,2]
[364253498,1749049847337,-440.0,0.00017534,2]
[364253499,1749049847346,-440.0,0.00017534,2]
[364253502,1749049847357,-440.0,0.00017534,2]
[364253503,1749049847367,-440.0,0.00017534,2]
[364253505,1749049847376,-440.0,0.00017534,2]
[364253507,1749049847385,-954.88,0.00017534,2]
[364253510,1749049847395,-1018.43,0.00017534,2]
[364253511,1749049847405,-440.0,0.00017534,2]
[364253513,1749049847414,-245.4280154,0.00017534,2]
[364253515,1749049847424,-440.0,0.00017534,2]
[364253517,1749049847433,-440.0,0.00017534,2]
[364253519,1749049847443,-440.0,0.00017534,2]
[364253522,1749049847453,-440.0,0.00017534,2]
[364253523,1749049847463,-588.98,0.00017534,2]
[364253525,1749049847473,-440.0,0.00017534,2]
[364253527,1749049847486,-440.0,0.00017534,2]
[364253530,1749049847495,-440.0,0.00017534,2]
[364253531,1749049847506,-440.0,0.00017534,2]
[364253533,1749049847515,-440.0,0.00017534,2]
[364253535,1749049847528,-440.0,0.00017534,2]
[364253537,1749049847539,-390.0,0.00017534,2]
[364253540,1749049847549,-440.0,0.00017534,2]
[364253541,1749049847562,-1028.62,0.00017534,2]
[364253544,1749049847572,-973.96,0.00017534,2]
[364253546,1749049847582,-440.0,0.00017534,2]
[364253548,1749049847591,-390.0,0.00017534,2]
[364253550,1749049847601,-440.0,0.00017534,2]
[364253552,1749049847610,-440.0,0.00017534,2]
[364253553,1749049847620,-440.0,0.00017534,2]
[364253555,1749049847629,-641.5,0.00017534,2]
[364253557,1749049847638,-440.0,0.00017534,2]
[364253560,1749049847649,-440.0,0.00017534,2]
[364253561,1749049847658,-440.0,0.00017534,2]
[364253563,1749049847668,-1725.1,0.00017534,2]
[364253565,1749049847677,-440.0,0.00017534,2]
[364253568,1749049847687,-440.0,0.00017534,2]
[364253570,1749049847698,-440.0,0.00017534,2]
[364253572,1749049847707,-440.0,0.00017534,2]
[364253574,1749049847716,-440.0,0.00017534,2]
[364253576,1749049847727,-440.0,0.00017534,2]
[364253578,1749049847736,-440.0,0.00017534,2]
[364253580,1749049847746,-494.08,0.00017534,2]
[364253582,1749049847755,-440.0,0.00017534,2]
[364253584,1749049847764,-1500.0,0.00017568,2]
[364253586,1749049847775,-609.34697371,0.00017573,2]
[364253588,1749049847785,-500.0,0.00017573,2]
[364253590,1749049847794,-500.0,0.00017573,2]
[364253592,1749049847803,-600.0,0.00017573,2]
[364253594,1749049847812,-500.0,0.00017573,2]
[364253596,1749049847821,-500.0,0.00017573,2]
[364253598,1749049847831,-500.0,0.00017581,2]
[364253600,1749049847840,-500.0,0.00017581,2]
[364253602,1749049847848,-438.07143954,0.00017581,2]
[364253604,1749049847858,-500.0,0.00017608,2]
[364253606,1749049847867,-152.90414247,0.00017608,2]
[364253608,1749049847876,-203.87775136,0.00017698,2]
[364253610,1749049847885,-776.5384543,0.00017728,2]
[364253612,1749049847895,-2062.88,0.00017798,3]
[364253614,1749049847904,-1031.44,0.00017798,3]
[364253615,1749049847913,-515.72,0.00017798,3]
[364253618,1749049847923,-333.35188082,0.00017804,2]
[364253619,1749049847932,-493.68,0.00017808,2]
[364253621,1749049847941,-392.62903522,0.00017808,2]
[364253624,1749049847951,-380.0,0.00017808,2]
[364253625,1749049847961,-440.0,0.00017808,2]
[364253628,1749049847971,-440.0,0.00017808,2]
[364253630,1749049847981,-380.0,0.00017808,2]
[364253632,1749049847992,-380.0,0.00017808,2]
[364253633,1749049848002,-440.0,0.00017808,2]
[364253635,1749049848011,-440.0,0.00017808,2]
[364253638,1749049848022,-440.0,0.00017808,2]
[364253640,1749049848033,-420.0,0.00017808,2]
[364253642,1749049848043,-440.0,0.00017808,2]
[364253643,1749049848052,-440.0,0.00017808,2]
[364253645,1749049848062,-440.0,0.00017808,2]
[364253648,1749049848072,-456.05839542,0.00017808,2]
[364253650,1749049848081,-440.0,0.00017808,2]
[364253652,1749049848091,-325.29681802,0.00017808,2]
[364253654,1749049848100,-460.96,0.00017808,2]
[364253656,1749049848110,-440.0,0.00017808,2]
[364253657,1749049848119,-440.0,0.00017808,2]
[364253667,1749049848129,-440.0,0.00017808,2]
[364253669,1749049848211,-440.0,0.00017808,2]
[364253671,1749049848220,-440.0,0.00017808,2]
[364253673,1749049848230,-728.53,0.00017808,2]
[364253675,1749049848240,-440.0,0.00017808,2]
[364253677,1749049848249,-440.0,0.00017808,2]
[364253679,1749049848259,-440.0,0.00017808,2]
[364253681,1749049848268,-440.0,0.00017808,2]
[364253683,1749049848278,-1817.93,0.00017808,2]
[364253685,1749049848289,-440.0,0.00017808,2]
[364253687,1749049848299,-446.24709914,0.00017808,2]
[364253689,1749049848308,-440.0,0.00017808,2]
[364253691,1749049848318,-954.0,0.00017808,2]
[364253693,1749049848328,-440.0,0.00017808,2]
[364253695,1749049848338,-440.0,0.00017808,2]
[364253697,1749049848347,-440.0,0.00017808,2]
[364253699,1749049848357,-1292.98,0.00017808,2]
[364253701,1749049848367,-440.0,0.00017808,2]
[364253702,1749049848378,-1731.79,0.00017808,2]
[364253705,1749049848388,-380.0,0.00017808,2]
[364253707,1749049848398,-440.0,0.00017808,2]
[364253709,1749049848408,-440.0,0.00017808,2]
[364253710,1749049848417,-440.0,0.00017808,2]
[364253713,1749049848427,-440.0,0.00017808,2]
[364253715,1749049848437,-380.0,0.00017808,2]
[364253717,1749049848446,-440.0,0.00017808,2]
[364253719,1749049848458,-2281.41,0.00017808,2]
[364253721,1749049848468,-440.0,0.00017808,2]
[364253723,1749049848479,-440.0,0.00017808,2]
[364253725,1749049848492,-440.0,0.00017808,2]
[364253727,1749049848502,-440.0,0.00017808,2]
[364253729,1749049848512,-440.0,0.00017808,2]
[364253731,1749049848523,-732.21,0.00017808,2]
[364253733,1749049848534,-783.41,0.00017808,2]
[364253735,1749049848544,-380.0,0.00017808,2]
[364253737,1749049848553,-313.97491118,0.00017808,2]
[364253739,1749049848566,-440.0,0.00017808,2]
[364253741,1749049848577,-440.0,0.00017808,2]
[364253743,1749049848586,-440.0,0.00017808,2]
[364253745,1749049848597,-954.88,0.00017808,2]
[364253747,1749049848606,-1018.43,0.00017808,2]
[364253749,1749049848616,-390.0,0.00017808,2]
[364253751,1749049848625,-440.0,0.00017808,2]
[364253753,1749049848635,-440.0,0.00017808,2]
[364253755,1749049848645,-440.0,0.00017808,2]
[364253757,1749049848655,-440.0,0.00017808,2]
[364253759,1749049848665,-588.98,0.00017808,2]
[364253761,1749049848675,-440.0,0.00017808,2]
[364253763,1749049848685,-440.0,0.00017808,2]
[364253765,1749049848695,-440.0,0.00017808,2]
[364253767,1749049848706,-206.82,0.00017808,2]
[364253769,1749049848715,-440.0,0.00017808,2]
[364253771,1749049848725,-440.0,0.00017808,2]
[364253773,1749049848736,-440.0,0.00017808,2]
[364253775,1749049848746,-1028.62,0.00017808,2]
[364253777,1749049848756,-973.96,0.00017808,2]
[364253779,1749049848766,-440.0,0.00017808,2]
[364253781,1749049848777,-440.0,0.00017808,2]
[364253783,1749049848787,-440.0,0.00017808,2]
[364253785,1749049848797,-380.0,0.00017808,2]
[364253788,1749049848808,-641.5,0.00017808,2]
[364253790,1749049848817,-440.0,0.00017808,2]
[364253792,1749049848827,-440.0,0.00017808,2]
[364253794,1749049848836,-555.76,0.00017808,2]
[364253796,1749049848846,-1725.1,0.00017808,2]
[364253798,1749049848857,-440.0,0.00017808,2]
[364253800,1749049848867,-440.0,0.00017808,2]
[364253803,1749049848884,-440.0,0.00017808,2]
[364253806,1749049848905,-440.0,0.00017808,2]
[364253808,1749049848922,-440.0,0.00017808,2]
[364253811,1749049848940,-440.0,0.00017808,2]
[364253814,1749049848958,-440.0,0.00017808,2]
[364253817,1749049848978,-494.08,0.00017808,2]
[364253820,1749049848994,-440.0,0.00017808,2]
[364253822,1749049849009,-267.74381626,0.00017868,2]
[364253825,1749049849028,-236.20738718,0.00017922,2]
[364253828,1749049849042,-420.0,0.00017952,2]
[364253830,1749049849056,-331.0,0.00017952,2]
[364253833,1749049849071,-420.0,0.00017963,2]
[364253836,1749049849088,-776.5384543,0.00018003,2]
[364253838,1749049849107,-265.0,0.00018042,2]
[364253841,1749049849125,-370.0,0.00018082,2]
[364253843,1749049849138,-386.64305447,0.00018082,2]
[364253846,1749049849152,-440.0,0.00018082,2]
[364253849,1749049849171,-440.0,0.00018082,2]
[364253851,1749049849184,-440.0,0.00018082,2]
[364253854,1749049849202,-440.0,0.00018082,2]
[364253856,1749049849215,-440.0,0.00018082,2]
[364253859,1749049849229,-440.0,0.00018082,2]
[364253861,1749049849240,-440.0,0.00018082,2]
[364253863,1749049849253,-460.96,0.00018082,2]
[364253866,1749049849265,-440.0,0.00018082,2]
[364253868,1749049849278,-440.0,0.00018082,2]
[364253870,1749049849291,-440.0,0.00018082,2]
[364253873,1749049849305,-373.68576195,0.00018082,2]
[364253875,1749049849320,-440.0,0.00018082,2]
[364253878,1749049849333,-728.53,0.00018082,2]
[364253880,1749049849347,-370.0,0.00018082,2]
[364253883,1749049849361,-532.52361612,0.00018082,2]
[364253885,1749049849375,-440.0,0.00018082,2]
[364253888,1749049849389,-440.0,0.00018082,2]
[364253890,1749049849403,-1817.93,0.00018082,2]
[364253892,1749049849418,-440.0,0.00018082,2]
[364253895,1749049849432,-440.0,0.00018082,2]
[364253897,1749049849446,-954.0,0.00018082,2]
[364253900,1749049849459,-370.0,0.00018082,2]
[364253902,1749049849473,-370.0,0.00018082,2]
[364253904,1749049849489,-440.0,0.00018082,2]
[364253907,1749049849503,-1292.98,0.00018082,2]
[364253909,1749049849516,-440.0,0.00018082,2]
[364253911,1749049849532,-1731.79,0.00018082,2]
[364253914,1749049849545,-440.0,0.00018082,2]
[364253916,1749049849560,-440.0,0.00018082,2]
[364253919,1749049849574,-440.0,0.00018082,2]
[364253921,1749049849588,-440.0,0.00018082,2]
[364253924,1749049849602,-440.0,0.00018082,2]
[364253926,1749049849615,-2281.41,0.00018082,2]
[364253929,1749049849629,-440.0,0.00018082,2]
[364253931,1749049849644,-440.0,0.00018082,2]
[364253934,1749049849658,-440.0,0.00018082,2]
[364253936,1749049849672,-440.0,0.00018082,2]
[364253938,1749049849685,-440.0,0.00018082,2]
[364253941,1749049849699,-732.21,0.00018082,2]
[364253943,1749049849712,-783.41,0.00018082,2]
[364253946,1749049849726,-440.0,0.00018082,2]
[364253948,1749049849739,-440.0,0.00018082,2]